[Event "December 12 Early 2023"]
[Site "https://www.chess.com"]
[Date "2023.12.12"]
[Round "7"]
[White "Dilmukhametov, Artur"]
[Black "Shubenkova, Veronika"]
[Result "0-1"]
[Board "92"]
[TimeControl "180+1"]
[WhiteFideId "24179922"]
[BlackFideId "44124040"]
[WhiteElo "2456"]
[BlackElo "2587"]
[WhiteTeam "RUS"]
[BlackTeam "RUS"]
[WhiteClock "0:00:10"]
[BlackClock "0:00:07"]

1. e4 {[%clk 0:02:57]}  e6 {[%clk 0:02:58]} 2. d4 {[%clk 0:02:57]}  d5 {[%clk 0:02:58]} 3. e5 {[%clk 0:02:57]}  c5 {[%clk 0:02:58]} 4. c3 {[%clk 0:02:57]}  Nc6 {[%clk 0:02:58]} 5. Nf3 {[%clk 0:02:57]}  Qb6 {[%clk 0:02:58]} 6. a3 {[%clk 0:02:58]}  c4 {[%clk 0:02:58]} 7. Nbd2 {[%clk 0:02:57]}  Na5 {[%clk 0:02:58]} 8. Rb1 {[%clk 0:02:50]}  Bd7 {[%clk 0:02:58]} 9. g3 {[%clk 0:02:48]}  Be7 {[%clk 0:02:51]} 10. h4 {[%clk 0:02:46]}  Nh6 {[%clk 0:02:48]} 11. Bh3 {[%clk 0:02:46]}  f5 {[%clk 0:02:44]} 12. exf6 {[%clk 0:02:38]}  gxf6 {[%clk 0:02:44]} 13. O-O {[%clk 0:02:36]}  Nf5 {[%clk 0:02:43]} 14. Re1 {[%clk 0:02:32]}  Qd6 {[%clk 0:02:26]} 15. Nf1 {[%clk 0:02:23]}  Qb6 {[%clk 0:01:44]} 16. Ne3 {[%clk 0:02:02]}  Nd6 {[%clk 0:01:40]} 17. Ng2 {[%clk 0:01:55]}  Ne4 {[%clk 0:01:35]} 18. Nf4 {[%clk 0:01:48]}  O-O-O {[%clk 0:01:30]} 19. Nd2 {[%clk 0:01:22]}  f5 {[%clk 0:01:14]} 20. Nf3 {[%clk 0:01:17]}  Bd6 {[%clk 0:01:14]} 21. Be3 {[%clk 0:00:52]}  Rhg8 {[%clk 0:01:08]} 22. Kg2 {[%clk 0:00:20]}  Nc6 {[%clk 0:01:07]} 23. Ne5 {[%clk 0:00:17]}  Qc7 {[%clk 0:01:04]} 24. Nxc6 {[%clk 0:00:10]}  bxc6 {[%clk 0:00:59]} 25. b3 {[%clk 0:00:10]}  Bxf4 {[%clk 0:00:57]} 26. bxc4 {[%clk 0:00:10]}  Bxg3 {[%clk 0:00:55]} 27. Qa4 {[%clk 0:00:07]}  Bxh4+ {[%clk 0:00:49]} 28. Kf1 {[%clk 0:00:07]}  Rdf8 {[%clk 0:00:47]} 29. Qa6+ {[%clk 0:00:06]}  Kd8 {[%clk 0:00:47]} 30. Rb7 {[%clk 0:00:02]}  Qh2 {[%clk 0:00:46]} 31. Qxa7 {[%clk 0:00:01]}  Qxh3+ {[%clk 0:00:26]} 32. Ke2 {[%clk 0:00:02]}  Qg4+ {[%clk 0:00:26]} 33. Kf1 {[%clk 0:00:01]}  Rg7 {[%clk 0:00:07]} 34. Qa8+ {[%clk 0:00:01]}  Ke7 {[%clk 0:00:07]} 35. Qa7 {[%clk 0:00:01]}  Kf6 {[%clk 0:00:07]} 36. Rxd7 {[%clk 0:00:02]}  Bxf2 {[%clk 0:00:05]} 37. Rxg7 {[%clk 0:00:01]}  Qh3+ {[%clk 0:00:05]} 38. Ke2 {[%clk 0:00:02]}  Qxe3+ {[%clk 0:00:05]} 39. Kf1 {[%clk 0:00:01]}  Qxe1+ {[%clk 0:00:04]} 40. Kg2 {[%clk 0:00:01]}  Qg1+ {[%clk 0:00:05]} 41. Kf3 {[%clk 0:00:02]}  Qxg7 {[%clk 0:00:04]} 42. Qxg7+ {[%clk 0:00:02]}  Kxg7 {[%clk 0:00:05]} 43. cxd5 {[%clk 0:00:03]}  exd5 {[%clk 0:00:05]} 44. a4 {[%clk 0:00:04]}  Nxc3 {[%clk 0:00:05]} 45. Kxf2 {[%clk 0:00:03]}  Nxa4 {[%clk 0:00:05]} 46. Ke3 {[%clk 0:00:04]}  h5 {[%clk 0:00:05]} 47. Kf4 {[%clk 0:00:05]}  Kf6 {[%clk 0:00:05]} 48. Kg3 {[%clk 0:00:06]}  Rg8+ {[%clk 0:00:06]} 49. Kh4 {[%clk 0:00:07]}  f4 {[%clk 0:00:06]} 50. Kh3 {[%clk 0:00:08]}  f3 {[%clk 0:00:06]} 51. Kh4 {[%clk 0:00:09]}  f2 {[%clk 0:00:07]} 52. Kh3 {[%clk 0:00:10]}  f1=Q+ {[%clk 0:00:07]} 53. Kh2 {[%clk 0:00:10]}  Qg2# {[%clk 0:00:07]} 0-1

[Event "December 12 Early 2023"]
[Site "https://www.chess.com"]
[Date "2023.12.12"]
[Round "7"]
[White "Vestby-Ellingsen, Mads"]
[Black "Khromkin, Andrey"]
[Result "1-0"]
[Board "93"]
[TimeControl "180+1"]
[WhiteFideId "1520857"]
[BlackFideId "4154126"]
[WhiteElo "2586"]
[BlackElo "2456"]
[WhiteTeam "NOR"]
[BlackTeam "RUS"]
[WhiteClock "0:01:16"]
[BlackClock "0:01:13"]

1. a3 {[%clk 0:03:00]}  d5 {[%clk 0:02:56]} 2. h3 {[%clk 0:03:00]}  c5 {[%clk 0:02:56]} 3. d3 {[%clk 0:03:01]}  Nc6 {[%clk 0:02:57]} 4. Nc3 {[%clk 0:03:00]}  g6 {[%clk 0:02:57]} 5. e4 {[%clk 0:03:00]}  Nf6 {[%clk 0:02:56]} 6. Bd2 {[%clk 0:02:59]}  Bg7 {[%clk 0:02:56]} 7. Qc1 {[%clk 0:02:59]}  Nd4 {[%clk 0:02:54]} 8. e5 {[%clk 0:02:54]}  Nd7 {[%clk 0:02:49]} 9. Nxd5 {[%clk 0:02:45]}  Nxe5 {[%clk 0:02:48]} 10. Ne3 {[%clk 0:02:37]}  O-O {[%clk 0:02:48]} 11. Ne2 {[%clk 0:02:34]}  b6 {[%clk 0:02:37]} 12. Nxd4 {[%clk 0:02:32]}  cxd4 {[%clk 0:02:37]} 13. Ng4 {[%clk 0:02:32]}  Nxg4 {[%clk 0:02:16]} 14. hxg4 {[%clk 0:02:32]}  Bxg4 {[%clk 0:02:16]} 15. Bh6 {[%clk 0:02:32]}  Qd5 {[%clk 0:02:13]} 16. f3 {[%clk 0:02:21]}  Qe5+ {[%clk 0:02:06]} 17. Kf2 {[%clk 0:02:20]}  Bd7 {[%clk 0:01:58]} 18. Qd2 {[%clk 0:01:49]}  Rac8 {[%clk 0:01:50]} 19. Re1 {[%clk 0:01:46]}  Bxh6 {[%clk 0:01:49]} 20. Rxh6 {[%clk 0:01:39]}  Qf6 {[%clk 0:01:43]} 21. Re4 {[%clk 0:01:29]}  Rc5 {[%clk 0:01:39]} 22. Be2 {[%clk 0:01:29]}  Rfc8 {[%clk 0:01:36]} 23. Bd1 {[%clk 0:01:29]}  Bf5 {[%clk 0:01:29]} 24. Reh4 {[%clk 0:01:27]}  g5 {[%clk 0:01:29]} 25. Rxf6 {[%clk 0:01:26]}  exf6 {[%clk 0:01:27]} 26. Rxd4 {[%clk 0:01:26]}  Re5 {[%clk 0:01:22]} 27. f4 {[%clk 0:01:24]}  gxf4 {[%clk 0:01:19]} 28. Qxf4 {[%clk 0:01:21]}  Bg6 {[%clk 0:01:19]} 29. g4 {[%clk 0:01:16]}  h5 {[%clk 0:01:18]} 30. Qxf6 {[%clk 0:01:16]}  Re6 {[%clk 0:01:14]} 31. Rd8+ {[%clk 0:01:15]}  Rxd8 {[%clk 0:01:13]} 32. Qxd8+ {[%clk 0:01:16]}  Kg7 {[%clk 0:01:13]} 33. gxh5 {[%clk 0:01:17]}  Bf5 {[%clk 0:01:13]} 34. Qg5+ {[%clk 0:01:16]} 1-0

[Event "December 12 Early 2023"]
[Site "https://www.chess.com"]
[Date "2023.12.12"]
[Round "7"]
[White "Goldin, Roman"]
[Black "Iskusnyh, Sergei"]
[Result "1-0"]
[Board "96"]
[TimeControl "180+1"]
[WhiteFideId "2803860"]
[BlackFideId "4120027"]
[WhiteElo "2436"]
[BlackElo "2581"]
[WhiteTeam "ISR"]
[BlackTeam "RUS"]
[WhiteClock "0:00:24"]
[BlackClock "0:00:06"]

1. e4 {[%clk 0:02:54]}  e6 {[%clk 0:02:59]} 2. d4 {[%clk 0:02:51]}  d5 {[%clk 0:02:59]} 3. Nd2 {[%clk 0:02:51]}  c5 {[%clk 0:02:59]} 4. Ngf3 {[%clk 0:02:50]}  cxd4 {[%clk 0:02:56]} 5. exd5 {[%clk 0:02:50]}  Qxd5 {[%clk 0:02:56]} 6. Bc4 {[%clk 0:02:50]}  Qd6 {[%clk 0:02:55]} 7. O-O {[%clk 0:02:50]}  Nf6 {[%clk 0:02:55]} 8. Nb3 {[%clk 0:02:50]}  Nc6 {[%clk 0:02:55]} 9. Nbxd4 {[%clk 0:02:50]}  Nxd4 {[%clk 0:02:55]} 10. Nxd4 {[%clk 0:02:51]}  Be7 {[%clk 0:02:54]} 11. c3 {[%clk 0:02:51]}  O-O {[%clk 0:02:50]} 12. Qe2 {[%clk 0:02:51]}  a6 {[%clk 0:02:47]} 13. Bg5 {[%clk 0:02:46]}  b5 {[%clk 0:02:34]} 14. Bb3 {[%clk 0:02:45]}  Bb7 {[%clk 0:02:21]} 15. Rad1 {[%clk 0:02:38]}  Qc7 {[%clk 0:02:17]} 16. Rfe1 {[%clk 0:02:31]}  Rad8 {[%clk 0:01:16]} 17. Nxe6 {[%clk 0:02:02]}  fxe6 {[%clk 0:01:13]} 18. Qxe6+ {[%clk 0:02:01]}  Kh8 {[%clk 0:01:12]} 19. Qxe7 {[%clk 0:01:57]}  Qc6 {[%clk 0:01:06]} 20. f3 {[%clk 0:01:46]}  Rde8 {[%clk 0:01:04]} 21. Qb4 {[%clk 0:01:36]}  a5 {[%clk 0:00:55]} 22. Qd4 {[%clk 0:01:32]}  a4 {[%clk 0:00:51]} 23. Bc2 {[%clk 0:01:21]}  Rxe1+ {[%clk 0:00:22]} 24. Rxe1 {[%clk 0:01:21]}  a3 {[%clk 0:00:22]} 25. bxa3 {[%clk 0:01:19]}  h6 {[%clk 0:00:19]} 26. Bxf6 {[%clk 0:01:14]}  Qxf6 {[%clk 0:00:14]} 27. Qxf6 {[%clk 0:01:12]}  gxf6 {[%clk 0:00:15]} 28. Re7 {[%clk 0:00:55]}  Bc6 {[%clk 0:00:15]} 29. Rc7 {[%clk 0:00:52]}  Ba8 {[%clk 0:00:12]} 30. Bf5 {[%clk 0:00:46]}  Re8 {[%clk 0:00:11]} 31. Rc8 {[%clk 0:00:45]}  Rxc8 {[%clk 0:00:12]} 32. Bxc8 {[%clk 0:00:45]}  Kg7 {[%clk 0:00:13]} 33. Bd7 {[%clk 0:00:44]}  Kf8 {[%clk 0:00:13]} 34. Bxb5 {[%clk 0:00:43]}  Ke7 {[%clk 0:00:14]} 35. Kf2 {[%clk 0:00:43]}  Kd6 {[%clk 0:00:15]} 36. Ke3 {[%clk 0:00:43]}  Kc5 {[%clk 0:00:16]} 37. Bd3 {[%clk 0:00:43]}  Bd5 {[%clk 0:00:15]} 38. c4 {[%clk 0:00:41]}  Bc6 {[%clk 0:00:15]} 39. h4 {[%clk 0:00:40]}  Bb7 {[%clk 0:00:14]} 40. g4 {[%clk 0:00:38]}  Bc8 {[%clk 0:00:13]} 41. Kf4 {[%clk 0:00:36]}  Kd4 {[%clk 0:00:12]} 42. Bf5 {[%clk 0:00:37]}  Bb7 {[%clk 0:00:12]} 43. Be6 {[%clk 0:00:35]}  Ba8 {[%clk 0:00:10]} 44. a4 {[%clk 0:00:29]}  Bc6 {[%clk 0:00:09]} 45. a5 {[%clk 0:00:28]}  Bb7 {[%clk 0:00:10]} 46. Bd5 {[%clk 0:00:26]}  Bc8 {[%clk 0:00:10]} 47. a6 {[%clk 0:00:25]}  Bxa6 {[%clk 0:00:09]} 48. Kf5 {[%clk 0:00:25]}  Ke3 {[%clk 0:00:08]} 49. Kxf6 {[%clk 0:00:25]}  Kf4 {[%clk 0:00:09]} 50. g5 {[%clk 0:00:25]}  hxg5 {[%clk 0:00:09]} 51. hxg5 {[%clk 0:00:26]}  Bxc4 {[%clk 0:00:06]} 52. Bxc4 {[%clk 0:00:24]} 1-0

[Event "December 12 Early 2023"]
[Site "https://www.chess.com"]
[Date "2023.12.12"]
[Round "7"]
[White "Osmak, Yuliia"]
[Black "yaguigor"]
[Result "0-1"]
[Board "100"]
[TimeControl "180+1"]
[WhiteFideId "14101602"]
[WhiteElo "2544"]
[BlackElo "2430"]
[WhiteTeam "UKR"]
[WhiteClock "0:00:00"]
[BlackClock "0:00:39"]

1. e4 {[%clk 0:03:00]}  c5 {[%clk 0:02:58]} 2. Nf3 {[%clk 0:03:00]}  Nc6 {[%clk 0:02:57]} 3. Bb5 {[%clk 0:03:00]}  Nf6 {[%clk 0:02:55]} 4. Nc3 {[%clk 0:02:48]}  Qc7 {[%clk 0:02:48]} 5. O-O {[%clk 0:02:45]}  Nd4 {[%clk 0:02:48]} 6. Bc4 {[%clk 0:02:33]}  e6 {[%clk 0:02:46]} 7. d3 {[%clk 0:02:29]}  Ng4 {[%clk 0:02:38]} 8. g3 {[%clk 0:02:21]}  Nxf3+ {[%clk 0:02:37]} 9. Qxf3 {[%clk 0:02:22]}  Ne5 {[%clk 0:02:37]} 10. Qe2 {[%clk 0:02:17]}  a6 {[%clk 0:02:34]} 11. Bb3 {[%clk 0:02:11]}  Be7 {[%clk 0:02:31]} 12. Bf4 {[%clk 0:01:48]}  d6 {[%clk 0:02:27]} 13. a4 {[%clk 0:01:37]}  Nc6 {[%clk 0:02:23]} 14. Qd1 {[%clk 0:01:32]}  b6 {[%clk 0:02:17]} 15. Qg4 {[%clk 0:01:09]}  O-O {[%clk 0:02:13]} 16. Bh6 {[%clk 0:00:53]}  Bf6 {[%clk 0:02:12]} 17. Bg5 {[%clk 0:00:47]}  Ne5 {[%clk 0:02:09]} 18. Qh5 {[%clk 0:00:36]}  Bxg5 {[%clk 0:02:06]} 19. f4 {[%clk 0:00:36]}  Bf6 {[%clk 0:02:04]} 20. fxe5 {[%clk 0:00:35]}  Bxe5 {[%clk 0:02:05]} 21. Rf3 {[%clk 0:00:25]}  g6 {[%clk 0:02:01]} 22. Qh6 {[%clk 0:00:22]}  Bd7 {[%clk 0:01:57]} 23. Raf1 {[%clk 0:00:20]}  b5 {[%clk 0:01:51]} 24. g4 {[%clk 0:00:18]}  Bg7 {[%clk 0:01:49]} 25. Qh4 {[%clk 0:00:18]}  c4 {[%clk 0:01:45]} 26. dxc4 {[%clk 0:00:11]}  bxc4 {[%clk 0:01:44]} 27. Ba2 {[%clk 0:00:11]}  Qb6+ {[%clk 0:01:36]} 28. Kh1 {[%clk 0:00:10]}  Qxb2 {[%clk 0:01:36]} 29. Rh3 {[%clk 0:00:09]}  h6 {[%clk 0:01:35]} 30. Ne2 {[%clk 0:00:04]}  Qxa2 {[%clk 0:01:28]} 31. g5 {[%clk 0:00:04]}  h5 {[%clk 0:01:27]} 32. Nf4 {[%clk 0:00:03]}  Rfb8 {[%clk 0:01:25]} 33. Nxh5 {[%clk 0:00:03]}  gxh5 {[%clk 0:00:55]} 34. Qxh5 {[%clk 0:00:04]}  Be8 {[%clk 0:00:55]} 35. Qh7+ {[%clk 0:00:04]}  Kf8 {[%clk 0:00:55]} 36. g6 {[%clk 0:00:02]}  Rb1 {[%clk 0:00:52]} 37. Rf3 {[%clk 0:00:02]}  Rxf1+ {[%clk 0:00:51]} 38. Rxf1 {[%clk 0:00:03]}  Qxc2 {[%clk 0:00:42]} 39. gxf7 {[%clk 0:00:03]}  Bxf7 {[%clk 0:00:42]} 40. Qg6 {[%clk 0:00:03]}  Ra7 {[%clk 0:00:41]} 41. Qxe6 {[%clk 0:00:03]}  Re7 {[%clk 0:00:40]} 42. Qc8+ {[%clk 0:00:03]}  Re8 {[%clk 0:00:39]} 43. Qf5 {[%clk 0:00:00]}  Qxe4+ {[%clk 0:00:39]} 0-1

[Event "December 12 Early 2023"]
[Site "https://www.chess.com"]
[Date "2023.12.12"]
[Round "7"]
[White "Parra Gomez, Adrian"]
[Black "Ginzburg, Yakov"]
[Result "0-1"]
[Board "101"]
[TimeControl "180+1"]
[WhiteFideId "3513106"]
[BlackFideId "4157176"]
[WhiteElo "2426"]
[BlackElo "2542"]
[WhiteTeam "CUB"]
[BlackTeam "RUS"]
[WhiteClock "0:00:00"]
[BlackClock "0:00:05"]

1. d4 {[%clk 0:03:00]}  d5 {[%clk 0:02:56]} 2. c4 {[%clk 0:03:01]}  c6 {[%clk 0:02:56]} 3. cxd5 {[%clk 0:03:01]}  cxd5 {[%clk 0:02:56]} 4. Nc3 {[%clk 0:03:01]}  e5 {[%clk 0:02:56]} 5. e4 {[%clk 0:02:33]}  dxe4 {[%clk 0:02:53]} 6. Bb5+ {[%clk 0:02:32]}  Bd7 {[%clk 0:02:52]} 7. dxe5 {[%clk 0:02:19]}  Bb4 {[%clk 0:02:51]} 8. Bxd7+ {[%clk 0:02:12]}  Qxd7 {[%clk 0:02:50]} 9. Qb3 {[%clk 0:02:05]}  Nc6 {[%clk 0:02:46]} 10. Ne2 {[%clk 0:01:58]}  Nge7 {[%clk 0:02:06]} 11. O-O {[%clk 0:01:55]}  Bxc3 {[%clk 0:02:05]} 12. Nxc3 {[%clk 0:01:53]}  O-O {[%clk 0:02:05]} 13. Nxe4 {[%clk 0:01:51]}  Nxe5 {[%clk 0:01:55]} 14. Bf4 {[%clk 0:01:49]}  Qf5 {[%clk 0:01:53]} 15. Bxe5 {[%clk 0:01:45]}  Qxe5 {[%clk 0:01:48]} 16. Rfe1 {[%clk 0:01:43]}  b6 {[%clk 0:01:39]} 17. Ng3 {[%clk 0:01:35]}  Qg5 {[%clk 0:01:35]} 18. Re4 {[%clk 0:01:25]}  Ng6 {[%clk 0:01:32]} 19. Rae1 {[%clk 0:01:24]}  Rac8 {[%clk 0:01:26]} 20. Qa4 {[%clk 0:01:16]}  Rc1 {[%clk 0:01:16]} 21. Qxa7 {[%clk 0:01:11]}  Qd2 {[%clk 0:01:16]} 22. Rxc1 {[%clk 0:00:45]}  Qxc1+ {[%clk 0:01:15]} 23. Nf1 {[%clk 0:00:46]}  Qxb2 {[%clk 0:01:16]} 24. Qa4 {[%clk 0:00:43]}  h6 {[%clk 0:00:51]} 25. h4 {[%clk 0:00:39]}  Rd8 {[%clk 0:00:35]} 26. Re8+ {[%clk 0:00:22]}  Rxe8 {[%clk 0:00:34]} 27. Qxe8+ {[%clk 0:00:23]}  Kh7 {[%clk 0:00:33]} 28. Qxf7 {[%clk 0:00:22]}  Nxh4 {[%clk 0:00:33]} 29. Ne3 {[%clk 0:00:12]}  Qb1+ {[%clk 0:00:33]} 30. Kh2 {[%clk 0:00:12]}  Qe4 {[%clk 0:00:32]} 31. Qd5 {[%clk 0:00:08]}  Qf4+ {[%clk 0:00:31]} 32. Kg1 {[%clk 0:00:08]}  Qf6 {[%clk 0:00:17]} 33. Qe4+ {[%clk 0:00:07]}  Ng6 {[%clk 0:00:12]} 34. Nd5 {[%clk 0:00:06]}  Qd6 {[%clk 0:00:11]} 35. g3 {[%clk 0:00:05]}  b5 {[%clk 0:00:11]} 36. Nf4 {[%clk 0:00:04]}  Qf6 {[%clk 0:00:08]} 37. Kf1 {[%clk 0:00:00]}  h5 {[%clk 0:00:05]} 0-1

[Event "December 12 Early 2023"]
[Site "https://www.chess.com"]
[Date "2023.12.12"]
[Round "7"]
[White "Lima, Stefan Moisei VIeira"]
[Black "Hirneise, Jens"]
[Result "0-1"]
[Board "103"]
[TimeControl "180+1"]
[WhiteFideId "22782273"]
[BlackFideId "24614734"]
[WhiteElo "2422"]
[BlackElo "2528"]
[WhiteTeam "BRA"]
[BlackTeam "GER"]
[WhiteClock "0:00:08"]
[BlackClock "0:00:08"]

1. e4 {[%clk 0:03:00]}  d5 {[%clk 0:02:59]} 2. exd5 {[%clk 0:02:53]}  Qxd5 {[%clk 0:03:00]} 3. Nc3 {[%clk 0:02:53]}  Qa5 {[%clk 0:02:59]} 4. d4 {[%clk 0:02:52]}  c6 {[%clk 0:02:59]} 5. Bc4 {[%clk 0:02:52]}  Nf6 {[%clk 0:02:59]} 6. Nf3 {[%clk 0:02:52]}  Bg4 {[%clk 0:02:59]} 7. h3 {[%clk 0:02:51]}  Bxf3 {[%clk 0:02:58]} 8. Qxf3 {[%clk 0:02:51]}  e6 {[%clk 0:02:56]} 9. O-O {[%clk 0:02:51]}  Be7 {[%clk 0:02:49]} 10. Re1 {[%clk 0:02:39]}  Nbd7 {[%clk 0:02:48]} 11. Bd2 {[%clk 0:02:39]}  Qh5 {[%clk 0:02:37]} 12. Qg3 {[%clk 0:02:35]}  Qg6 {[%clk 0:02:35]} 13. Qe3 {[%clk 0:02:20]}  Qf5 {[%clk 0:02:24]} 14. Bd3 {[%clk 0:02:18]}  Qh5 {[%clk 0:02:20]} 15. Ne2 {[%clk 0:02:05]}  Bd6 {[%clk 0:02:04]} 16. Nf4 {[%clk 0:01:56]}  Bxf4 {[%clk 0:02:01]} 17. Qxf4 {[%clk 0:01:57]}  O-O {[%clk 0:01:52]} 18. c4 {[%clk 0:01:46]}  Rfd8 {[%clk 0:01:41]} 19. Bc3 {[%clk 0:01:41]}  Nf8 {[%clk 0:01:34]} 20. Rad1 {[%clk 0:01:40]}  Ng6 {[%clk 0:01:29]} 21. Qg3 {[%clk 0:01:30]}  Rd7 {[%clk 0:01:25]} 22. Bc2 {[%clk 0:01:05]}  Rad8 {[%clk 0:01:22]} 23. Qe3 {[%clk 0:00:55]}  Qh4 {[%clk 0:01:16]} 24. b3 {[%clk 0:00:53]}  Qf4 {[%clk 0:01:11]} 25. Qxf4 {[%clk 0:00:46]}  Nxf4 {[%clk 0:01:11]} 26. a4 {[%clk 0:00:47]}  Ng6 {[%clk 0:01:03]} 27. a5 {[%clk 0:00:47]}  Ne8 {[%clk 0:00:53]} 28. Be4 {[%clk 0:00:41]}  Nd6 {[%clk 0:00:50]} 29. Bf3 {[%clk 0:00:40]}  Nh4 {[%clk 0:00:50]} 30. Be2 {[%clk 0:00:38]}  Ne4 {[%clk 0:00:50]} 31. Bb4 {[%clk 0:00:35]}  Rxd4 {[%clk 0:00:47]} 32. Rxd4 {[%clk 0:00:34]}  Rxd4 {[%clk 0:00:48]} 33. g3 {[%clk 0:00:34]}  Ng6 {[%clk 0:00:43]} 34. Bf3 {[%clk 0:00:20]}  f5 {[%clk 0:00:43]} 35. Bxe4 {[%clk 0:00:19]}  fxe4 {[%clk 0:00:42]} 36. Bc5 {[%clk 0:00:19]}  Rd3 {[%clk 0:00:37]} 37. b4 {[%clk 0:00:16]}  Rb3 {[%clk 0:00:29]} 38. Rxe4 {[%clk 0:00:15]}  b6 {[%clk 0:00:26]} 39. axb6 {[%clk 0:00:15]}  axb6 {[%clk 0:00:27]} 40. Bxb6 {[%clk 0:00:16]}  Rxb4 {[%clk 0:00:27]} 41. Bc5 {[%clk 0:00:15]}  Rb1+ {[%clk 0:00:26]} 42. Kg2 {[%clk 0:00:15]}  Kf7 {[%clk 0:00:27]} 43. h4 {[%clk 0:00:13]}  h5 {[%clk 0:00:27]} 44. Be3 {[%clk 0:00:12]}  e5 {[%clk 0:00:26]} 45. Bg5 {[%clk 0:00:06]}  Ke6 {[%clk 0:00:24]} 46. Re3 {[%clk 0:00:06]}  Rc1 {[%clk 0:00:20]} 47. Rxe5+ {[%clk 0:00:05]}  Nxe5 {[%clk 0:00:20]} 48. Bxc1 {[%clk 0:00:06]}  Nxc4 {[%clk 0:00:21]} 49. Kf3 {[%clk 0:00:06]}  Kf5 {[%clk 0:00:21]} 50. Kg2 {[%clk 0:00:04]}  Ke4 {[%clk 0:00:20]} 51. f3+ {[%clk 0:00:04]}  Kd3 {[%clk 0:00:20]} 52. g4 {[%clk 0:00:05]}  g6 {[%clk 0:00:19]} 53. Kg3 {[%clk 0:00:05]}  c5 {[%clk 0:00:11]} 54. gxh5 {[%clk 0:00:05]}  gxh5 {[%clk 0:00:12]} 55. Kf4 {[%clk 0:00:05]}  Kc2 {[%clk 0:00:11]} 56. Be3 {[%clk 0:00:02]}  Nxe3 {[%clk 0:00:11]} 57. Kxe3 {[%clk 0:00:03]}  Kb3 {[%clk 0:00:09]} 58. Kd2 {[%clk 0:00:03]}  c4 {[%clk 0:00:06]} 59. Kc1 {[%clk 0:00:03]}  Kc3 {[%clk 0:00:06]} 60. f4 {[%clk 0:00:04]}  Kd4 {[%clk 0:00:06]} 61. f5 {[%clk 0:00:05]}  Ke5 {[%clk 0:00:06]} 62. Kd2 {[%clk 0:00:06]}  Kxf5 {[%clk 0:00:06]} 63. Kc3 {[%clk 0:00:07]}  Kg4 {[%clk 0:00:07]} 64. Kxc4 {[%clk 0:00:08]}  Kxh4 {[%clk 0:00:07]} 65. Kd3 {[%clk 0:00:08]}  Kg3 {[%clk 0:00:08]} 0-1

[Event "December 12 Early 2023"]
[Site "https://www.chess.com"]
[Date "2023.12.12"]
[Round "7"]
[White "Matveeva, Olga"]
[Black "Eilers, Stefan"]
[Result "0-1"]
[Board "104"]
[TimeControl "180+1"]
[WhiteFideId "24107018"]
[BlackFideId "4609565"]
[WhiteElo "2417"]
[BlackElo "2524"]
[WhiteTeam "RUS"]
[BlackTeam "GER"]
[WhiteClock "0:01:16"]
[BlackClock "0:01:31"]

1. d4 {[%clk 0:03:00]}  d5 {[%clk 0:02:55]} 2. c4 {[%clk 0:03:01]}  e6 {[%clk 0:02:55]} 3. Nf3 {[%clk 0:03:01]}  c5 {[%clk 0:02:56]} 4. cxd5 {[%clk 0:03:01]}  exd5 {[%clk 0:02:56]} 5. g3 {[%clk 0:03:01]}  Nc6 {[%clk 0:02:56]} 6. Bg2 {[%clk 0:03:01]}  Nf6 {[%clk 0:02:56]} 7. O-O {[%clk 0:03:01]}  Be7 {[%clk 0:02:57]} 8. b3 {[%clk 0:02:57]}  Ne4 {[%clk 0:02:55]} 9. dxc5 {[%clk 0:02:52]}  Bf6 {[%clk 0:02:52]} 10. Nc3 {[%clk 0:02:24]}  Nxc3 {[%clk 0:02:43]} 11. Qc2 {[%clk 0:02:22]}  O-O {[%clk 0:02:26]} 12. Bb2 {[%clk 0:02:21]}  d4 {[%clk 0:02:26]} 13. a3 {[%clk 0:02:14]}  Qe7 {[%clk 0:02:13]} 14. b4 {[%clk 0:02:11]}  Qxe2 {[%clk 0:02:02]} 15. Qxe2 {[%clk 0:01:41]}  Nxe2+ {[%clk 0:02:02]} 16. Kh1 {[%clk 0:01:42]}  a6 {[%clk 0:01:53]} 17. Rad1 {[%clk 0:01:40]}  Nc3 {[%clk 0:01:50]} 18. Rd2 {[%clk 0:01:36]}  Bf5 {[%clk 0:01:40]} 19. h4 {[%clk 0:01:33]}  Rad8 {[%clk 0:01:38]} 20. Kh2 {[%clk 0:01:26]}  h6 {[%clk 0:01:35]} 21. Rc1 {[%clk 0:01:16]}  Ne4 {[%clk 0:01:31]} 0-1